bitfinex/quotes_BTCUSD_20250614
["timestamp","ask_amount","ask_price","bid_price","bid_amount"]
[1749936418394,9.032e-05,105180.0,105170.0,1.32729796]
[1749936419509,9.032e-05,105180.0,105170.0,1.34184057]
[1749936419733,0.08512039,105230.0,105170.0,1.34184057]
[1749936419734,0.26544533,105240.0,105230.0,0.20906539]
[1749936419947,0.26544533,105240.0,105230.0,0.19956276]
[1749936419948,0.80939639,105240.0,105230.0,0.19956276]
[1749936420190,1.14939639,105240.0,105230.0,0.35648276]
[1749936420405,1.14486358,105240.0,105230.0,0.35648276]
[1749936420637,1.14486358,105240.0,105230.0,0.34697986]
[1749936420868,0.80486358,105240.0,105230.0,0.34697986]
[1749936421095,0.27030991,105240.0,105230.0,0.36598539]
[1749936421317,0.61981172,105240.0,105230.0,0.36598539]
[1749936421538,0.61981172,105240.0,105230.0,0.37548793]
[1749936421756,0.61981197,105240.0,105230.0,0.37548793]
[1749936421975,0.40176919,105240.0,105230.0,0.38499038]
[1749936422221,0.0238672,105240.0,105230.0,0.39449274]
[1749936422436,0.0562105,105240.0,105230.0,0.39449274]
[1749936422703,0.04970653,105240.0,105230.0,0.39449274]
[1749936422928,0.05028786,105240.0,105230.0,0.39449274]
[1749936423154,0.0502882,105240.0,105230.0,0.47776801]
[1749936423388,0.39028825,105240.0,105230.0,0.39449274]
[1749936423611,0.38992541,105240.0,105230.0,0.39449274]
[1749936423830,0.37150422,105240.0,105230.0,0.42469274]
[1749936424270,0.38029752,105240.0,105230.0,0.42469274]
[1749936424477,0.38029754,105240.0,105230.0,0.5209345]
[1749936424687,0.01423776,105240.0,105230.0,0.64548372]
[1749936424892,0.00544491,105240.0,105230.0,0.64548372]
[1749936425112,0.01044491,105240.0,105230.0,0.64548372]
[1749936425335,0.01044491,105240.0,105230.0,0.68700372]
[1749936426931,0.01044491,105240.0,105230.0,0.5908545]
[1749936427151,0.01044491,105240.0,105230.0,1.13432928]
[1749936428021,0.00844491,105240.0,105230.0,1.13432928]
[1749936428229,0.00844491,105240.0,105230.0,0.5908545]
[1749936428453,0.00544491,105240.0,105230.0,0.5908545]
[1749936428678,0.00644491,105240.0,105230.0,0.5908545]
[1749936429354,0.00147582,105240.0,105230.0,1.2304785]
[1749936431499,0.00047582,105240.0,105230.0,1.2304785]
[1749936431717,0.00047582,105240.0,105230.0,1.2324785]
[1749936432160,0.02315648,105260.0,105250.0,0.21852621]
[1749936432382,0.02324696,105260.0,105250.0,0.54224797]
[1749936432612,0.00505793,105260.0,105250.0,0.65412324]
[1749936432858,9.048e-05,105260.0,105250.0,1.11432275]
[1749936433086,9.048e-05,105260.0,105250.0,1.11436275]
[1749936433305,0.00309048,105260.0,105250.0,1.11436275]
[1749936433745,0.00309048,105260.0,105250.0,1.21051197]
[1749936434255,0.00509048,105260.0,105250.0,1.21051197]
[1749936434484,0.00509048,105260.0,105250.0,1.21111197]
[1749936434709,9.048e-05,105260.0,105250.0,1.21111197]
[1749936434934,9.048e-05,105260.0,105250.0,0.66963719]
[1749936435144,9.048e-05,105260.0,105250.0,1.21511197]
[1749936435547,0.02645887,105260.0,105250.0,1.21511197]
[1749936435808,0.0265854,105260.0,105250.0,1.05321428]
[1749936435986,0.02683766,105260.0,105250.0,1.25217428]
[1749936436229,0.02683761,105260.0,105250.0,1.25217428]
[1749936436446,0.02683725,105260.0,105250.0,1.30217428]
[1749936436659,0.02683707,105260.0,105250.0,1.30217428]
[1749936436878,0.02683771,105260.0,105250.0,1.30217428]
[1749936437124,0.02683771,105260.0,105250.0,1.71779222]
[1749936437337,0.00900622,105260.0,105250.0,1.71779222]
[1749936437548,0.00900548,105260.0,105250.0,1.76410303]
[1749936437763,0.00900548,105260.0,105250.0,1.73576723]
[1749936437991,0.0090051,105260.0,105250.0,1.76410303]
[1749936438271,0.00900506,105260.0,105250.0,1.81022303]
[1749936438498,9.048e-05,105260.0,105250.0,1.81522303]
[1749936438726,0.01165022,105300.0,105290.0,0.21844319]
[1749936438727,0.00496402,105300.0,105290.0,0.21844319]
[1749936438954,0.00505444,105300.0,105290.0,0.95729903]
[1749936439182,0.00505444,105300.0,105290.0,1.15633903]
[1749936440124,9.042e-05,105300.0,105290.0,1.15633903]
[1749936441047,0.00109042,105300.0,105290.0,1.15633903]
[1749936441944,0.00109042,105300.0,105290.0,0.95729903]
[1749936442184,0.00109042,105300.0,105290.0,1.15633903]
[1749936443144,0.0573,105290.0,105280.0,0.18995403]
[1749936443368,0.2662661,105280.0,105270.0,0.25018595]
[1749936443603,0.07629741,105270.0,105260.0,0.20898722]
[1749936443841,1.06542034,105270.0,105260.0,0.20898722]
[1749936444082,1.15925958,105270.0,105260.0,0.19948784]
[1749936444315,0.96927193,105270.0,105260.0,0.42710742]
[1749936444561,0.01900146,105250.0,105240.0,0.20902915]
[1749936444833,0.01900146,105250.0,105230.0,0.19005986]
[1749936444834,0.61494642,105240.0,105230.0,0.19956249]
[1749936445070,0.02850798,105230.0,105220.0,0.21850521]
[1749936445310,1.10471348,105230.0,105220.0,0.0412]
[1749936445546,1.10471348,105230.0,105220.0,0.1992]
[1749936445785,1.10471348,105230.0,105210.0,0.21849061]
[1749936445786,0.60548508,105220.0,105210.0,0.21849061]
[1749936446030,0.038017,105210.0,105200.0,0.20907338]
[1749936446271,0.34,105220.0,105210.0,0.21860928]
[1749936446494,0.40590136,105240.0,105230.0,0.21856775]
[1749936446726,0.3686,105240.0,105230.0,0.41780775]
[1749936446968,0.34,105240.0,105230.0,0.51404951]
[1749936447183,0.028564,105260.0,105250.0,0.21852621]
[1749936447408,0.04679631,105280.0,105270.0,0.21848471]
[1749936447621,0.39629361,105280.0,105270.0,0.37652471]
[1749936447841,0.58626394,105280.0,105270.0,0.36702596]
[1749936448035,0.40579282,105280.0,105270.0,0.21848489]
[1749936448346,0.06579209,105280.0,105270.0,0.38606373]
[1749936448570,0.59576169,105280.0,105270.0,0.37656489]
[1749936448785,0.40579272,105280.0,105270.0,0.3765648]
[1749936449001,0.4192912,105280.0,105270.0,0.3765648]
[1749936449217,0.40029479,105280.0,105270.0,0.38606355]
[1749936449424,0.38129784,105280.0,105270.0,0.36706596]
[1749936449631,0.39079586,105280.0,105270.0,0.15808]
[1749936449843,0.0379959,105270.0,105250.0,0.19952448]
[1749936450047,0.0379959,105270.0,105250.0,0.19002375]
[1749936450048,1.12505645,105260.0,105250.0,0.19002375]
[1749936450256,0.35900119,105250.0,105240.0,0.25973197]
[1749936450469,0.38760119,105250.0,105240.0,0.26932399]
[1749936450713,0.3971021,105250.0,105240.0,0.26932399]
[1749936450906,0.40660301,105250.0,105240.0,0.26932399]
[1749936451122,0.05710201,105250.0,105240.0,0.42780399]
[1749936451331,0.00950046,105250.0,105240.0,0.42780399]
[1749936451538,0.01900101,105250.0,105240.0,0.4183019]
[1749936451760,0.01900092,105250.0,105240.0,0.2186219]
[1749936451972,0.00950037,105250.0,105240.0,0.4192619]
[1749936452180,0.01900092,105250.0,105240.0,0.4192619]
[1749936452613,0.01900101,105250.0,105240.0,0.4192619]
[1749936452821,0.01900092,105250.0,105240.0,0.4192619]
[1749936453251,0.00950037,105250.0,105240.0,0.4192619]
[1749936453475,0.01900092,105250.0,105240.0,0.4192619]
[1749936453885,0.96251475,105260.0,105250.0,0.19952475]
[1749936454093,1.15252045,105260.0,105250.0,0.19952475]
[1749936454310,0.64376973,105260.0,105250.0,0.19952475]
[1749936454558,0.64376973,105260.0,105250.0,0.21852612]
[1749936454559,0.028564,105260.0,105250.0,0.21852612]
[1749936454991,0.38849598,105270.0,105260.0,0.21850546]
[1749936455196,0.02949866,105270.0,105260.0,0.37746546]
[1749936455882,0.03446506,105270.0,105260.0,0.37746546]
[1749936456091,0.0249664,105270.0,105260.0,0.37746546]
[1749936456324,0.03446497,105270.0,105260.0,0.37746546]
[1749936456543,0.04396372,105270.0,105260.0,0.37746546]
[1749936457007,0.0049664,105270.0,105260.0,0.37746546]
[1749936457264,0.0049664,105270.0,105260.0,0.47361468]
[1749936457460,0.0049664,105270.0,105260.0,0.37746546]
[1749936457672,0.0069664,105270.0,105260.0,0.37746546]
[1749936457895,0.3469664,105270.0,105260.0,0.37746546]
[1749936458710,0.3449664,105270.0,105260.0,0.37746546]
[1749936461581,0.3449664,105270.0,105260.0,0.47370722]
[1749936463516,0.3449664,105270.0,105260.0,0.47570722]
[1749936465620,0.0049664,105270.0,105260.0,0.47570722]
[1749936466102,0.34,105290.0,105280.0,0.21846394]
[1749936466354,0.35446234,105290.0,105280.0,0.41926394]
[1749936466597,0.00496549,105290.0,105280.0,0.41926394]
[1749936467047,0.00496549,105290.0,105280.0,0.48208729]
[1749936467512,0.00696549,105290.0,105280.0,0.28128729]
[1749936467765,0.00696549,105290.0,105280.0,0.41918394]
[1749936470298,0.00696549,105290.0,105280.0,0.19946799]
[1749936470524,0.01899559,105280.0,105270.0,0.26066814]
[1749936470771,0.01899559,105280.0,105270.0,0.41902814]
[1749936471009,0.00949766,105280.0,105270.0,0.41902814]
[1749936471265,0.02849343,105280.0,105270.0,0.41902814]
[1749936471519,0.03799154,105280.0,105270.0,0.40952957]
[1749936471719,0.36849343,105280.0,105270.0,0.40952957]
[1749936471927,0.36849343,105280.0,105270.0,0.20896957]
[1749936472138,0.36849334,105280.0,105270.0,0.40952957]
[1749936472805,0.37799136,105280.0,105270.0,0.40952957]
[1749936473660,0.37799136,105280.0,105270.0,0.40953011]
[1749936473899,0.38748956,105280.0,105270.0,0.41902886]
[1749936474329,0.37799136,105280.0,105270.0,0.41902886]
[1749936474536,0.34,105280.0,105270.0,0.41902886]
[1749936474748,0.35899577,105280.0,105270.0,0.41902886]
[1749936475566,0.34,105280.0,105270.0,0.41902886]
[1749936475779,0.34949766,105280.0,105270.0,0.41902886]
[1749936477288,0.3589955,105280.0,105270.0,0.41902886]
[1749936477712,0.34,105280.0,105270.0,0.49711829]
[1749936478761,0.34949766,105280.0,105270.0,0.49711829]
[1749936479409,0.34,105280.0,105270.0,0.49711829]
[1749936480033,0.00496549,105290.0,105280.0,0.21846394]
[1749936480296,0.01446234,105290.0,105280.0,0.21846394]
[1749936480710,0.00496549,105290.0,105280.0,0.21846394]
[1749936480910,0.01446234,105290.0,105280.0,0.21846394]
[1749936481330,0.00496549,105290.0,105280.0,0.21846394]
[1749936481575,0.34949604,105300.0,105290.0,0.21844319]
[1749936481797,0.06722542,105320.0,105310.0,0.21840171]
[1749936482012,0.39655747,105320.0,105310.0,0.37636171]
[1749936482226,0.06324273,105320.0,105310.0,0.37636171]
[1749936482446,0.39655747,105320.0,105310.0,0.37636171]
[1749936482660,0.59309507,105320.0,105310.0,0.36686657]
[1749936482876,0.05828902,105300.0,105290.0,0.25074643]
[1749936483121,0.76646993,105300.0,105290.0,0.41820355]
[1749936483332,0.05828902,105300.0,105290.0,0.42770049]
[1749936483763,0.24822254,105300.0,105290.0,0.40870643]
[1749936483977,0.05828902,105300.0,105290.0,0.43719761]
[1749936484629,0.0677856,105300.0,105290.0,0.43719761]
[1749936484844,0.05828902,105300.0,105290.0,0.43719761]
[1749936485070,0.04879253,105300.0,105290.0,0.43719761]
[1749936485275,0.24822263,105300.0,105290.0,0.20894643]
[1749936485495,0.2898193,105300.0,105290.0,0.42770058]
[1749936485917,0.09038902,105300.0,105290.0,0.43719752]
[1749936486840,0.09988569,105300.0,105290.0,0.43719752]
[1749936487271,0.09038902,105300.0,105290.0,0.43719752]
[1749936487483,0.43038902,105300.0,105290.0,0.43719752]
[1749936488144,0.39279199,105300.0,105290.0,0.43719752]
[1749936488360,0.35349604,105300.0,105290.0,0.43719752]
[1749936488570,0.344,105300.0,105290.0,0.43719752]
[1749936496129,0.004,105300.0,105290.0,0.53343928]
[1749936496338,0.004,105300.0,105290.0,0.63601025]
[1749936496550,0.004,105300.0,105290.0,0.66541025]
[1749936496792,0.004,105300.0,105290.0,0.69291025]
[1749936497027,0.004,105300.0,105290.0,0.61300757]
[1749936497743,0.004,105300.0,105290.0,1.15465941]
[1749936499279,0.004,105300.0,105290.0,0.61300757]
[1749936502846,0.004,105300.0,105290.0,0.61300757]
[1749936506885,0.004,105300.0,105290.0,0.59033928]
[1749936507134,0.004,105300.0,105290.0,0.61298518]
[1749936507368,0.004,105300.0,105290.0,0.35632518]
[1749936507589,0.004,105300.0,105290.0,0.55544518]
[1749936508507,0.61972281,105300.0,105290.0,0.26389503]
[1749936508769,0.71587203,105300.0,105290.0,0.40794643]
[1749936508989,1.20463078,105300.0,105290.0,0.0418]
[1749936509220,1.20463078,105300.0,105290.0,0.19912]
[1749936509437,1.20463078,105300.0,105290.0,0.0418]
[1749936509678,1.20463078,105300.0,105290.0,0.19912]
[1749936510558,0.26794661,105290.0,105280.0,0.24126789]
[1749936510820,0.26796619,105280.0,105270.0,0.20897002]
[1749936511051,0.6174642,105280.0,105270.0,0.02268078]
[1749936511286,0.6174642,105280.0,105260.0,0.21831308]
[1749936511287,0.07809795,105270.0,105260.0,0.22800538]
[1749936511515,0.07809741,105270.0,105260.0,0.45931353]
[1749936511739,0.07809741,105270.0,105260.0,0.23750503]
[1749936511965,0.07809741,105270.0,105260.0,0.43666503]
[1749936512240,0.08759643,105270.0,105260.0,0.43666503]
[1749936512480,0.06809857,105270.0,105260.0,0.43666503]
[1749936512713,0.34,105280.0,105260.0,0.60055589]
[1749936512937,0.34,105280.0,105270.0,0.22798373]
[1749936514333,0.4111856,105300.0,105290.0,0.21844346]
[1749936514578,0.41132816,105300.0,105290.0,0.37600346]
[1749936514833,0.3828386,105300.0,105290.0,0.3855004]
[1749936515078,0.41132789,105300.0,105290.0,0.2279404]
[1749936515286,0.40183131,105300.0,105290.0,0.3854604]
[1749936515493,0.36313455,105300.0,105290.0,0.3854604]
[1749936515702,0.37263095,105300.0,105290.0,0.3854604]
[1749936515927,0.38212726,105300.0,105290.0,0.3854604]
[1749936516152,0.38212717,105300.0,105290.0,0.3854604]
[1749936516401,0.37263077,105300.0,105290.0,0.3854604]
[1749936516844,0.38212708,105300.0,105290.0,0.3854604]
[1749936517570,0.39162357,105300.0,105290.0,0.3854604]
[1749936518032,0.38212708,105300.0,105290.0,0.3854604]
[1749936518494,0.39162357,105300.0,105290.0,0.3854604]
[1749936518703,0.38212708,105300.0,105290.0,0.3854604]
[1749936518925,0.39162348,105300.0,105290.0,0.3854604]
[1749936519557,0.37263077,105300.0,105290.0,0.3854604]
[1749936519776,0.38212717,105300.0,105290.0,0.3854604]
[1749936521327,0.92398689,105300.0,105290.0,0.3854604]
[1749936522243,0.93348338,105300.0,105290.0,0.3854604]
[1749936522593,0.92398689,105300.0,105290.0,0.3854604]
[1749936522997,0.38212717,105300.0,105290.0,0.3854604]
[1749936523203,0.92398689,105300.0,105290.0,0.3854604]
[1749936523443,0.90499427,105300.0,105290.0,0.3854604]
[1749936523649,0.91449058,105300.0,105290.0,0.3854604]
[1749936523863,0.90499427,105300.0,105290.0,0.3854604]
[1749936524383,0.56099427,105300.0,105290.0,0.3854604]
[1749936524583,0.56099418,105300.0,105290.0,0.3854604]
[1749936525177,0.55149823,105300.0,105290.0,0.3854604]
[1749936525373,0.54200228,105300.0,105290.0,0.3854604]
[1749936525607,0.55149823,105300.0,105290.0,0.3854604]
[1749936526820,0.56099427,105300.0,105290.0,0.3854604]
[1749936527595,0.55149823,105300.0,105290.0,0.3854604]
[1749936528534,0.54200228,105300.0,105290.0,0.3854604]
[1749936528746,0.55149814,105300.0,105290.0,0.3854604]
[1749936528954,0.54200228,105300.0,105290.0,0.3854604]
[1749936529610,0.57049067,105300.0,105290.0,0.3854604]
[1749936530745,0.56099427,105300.0,105290.0,0.3854604]
[1749936530976,0.57049067,105300.0,105290.0,0.3854604]
[1749936531678,0.56099427,105300.0,105290.0,0.3854604]
[1749936532088,0.57049049,105300.0,105290.0,0.3854604]
[1749936532301,0.57049049,105300.0,105290.0,0.4269004]
[1749936533557,0.02863077,105300.0,105290.0,0.4269004]
[1749936533771,0.57049049,105300.0,105290.0,0.4269004]
[1749936533976,0.5799868,105300.0,105290.0,0.4269004]
[1749936534692,0.57049049,105300.0,105290.0,0.4269004]
[1749936536415,0.56099427,105300.0,105290.0,0.4269004]
[1749936536625,0.82782068,105300.0,105290.0,0.24088913]
[1749936536833,0.25734895,105290.0,105280.0,0.25990412]
[1749936537035,0.61875423,105290.0,105280.0,0.42644196]
[1749936537224,0.95875423,105290.0,105280.0,0.42644196]
[1749936538552,1.0644003,105290.0,105280.0,0.42644196]
[1749936539101,1.26384934,105290.0,105280.0,0.42644196]
[1749936539310,1.05490273,105290.0,105280.0,0.42644196]
[1749936539525,1.06439976,105290.0,105280.0,0.42644196]
[1749936539729,1.07389706,105290.0,105280.0,0.42644196]
[1749936539945,1.07389697,105290.0,105280.0,0.42644196]
[1749936540371,0.97774775,105290.0,105280.0,0.42644196]
[1749936540922,0.98724514,105290.0,105280.0,0.42644196]
[1749936541154,1.16769985,105290.0,105280.0,0.42644196]
[1749936541369,0.97774829,105290.0,105280.0,0.42644196]
[1749936542926,0.9682509,105290.0,105280.0,0.42644196]
[1749936543307,0.97774829,105290.0,105280.0,0.42644196]
[1749936543526,0.9103509,105290.0,105280.0,0.42644196]
[1749936543710,0.9103509,105290.0,105280.0,0.44915693]
[1749936544135,0.91984829,105290.0,105280.0,0.44915693]
[1749936544763,0.9103509,105290.0,105280.0,0.44915693]
[1749936545189,1.10979985,105290.0,105280.0,0.42066296]
[1749936545328,0.91984829,105290.0,105280.0,0.44915711]
[1749936545893,0.92934577,105290.0,105280.0,0.44915711]
[1749936546091,0.91984829,105290.0,105280.0,0.44915711]
[1749936546293,0.91984829,105290.0,105280.0,0.42644214]
[1749936546530,0.37798857,105290.0,105280.0,0.42644214]
[1749936547573,0.36849118,105290.0,105280.0,0.42644214]
[1749936547786,0.37798857,105290.0,105280.0,0.42644214]
[1749936548500,0.37798857,105290.0,105280.0,0.38500214]
[1749936550466,0.36849118,105290.0,105280.0,0.38500214]
[1749936550664,0.37798848,105290.0,105280.0,0.38500214]
[1749936550874,1.10979976,105290.0,105280.0,0.36600628]
[1749936551076,0.9198482,105290.0,105280.0,0.39450025]
[1749936551572,0.9103509,105290.0,105280.0,0.39450025]
[1749936551777,0.36849118,105290.0,105280.0,0.39450025]
[1749936552943,0.35899397,105290.0,105280.0,0.39450025]
[1749936553153,0.37798839,105290.0,105280.0,0.39450025]
[1749936553369,0.3779883,105290.0,105280.0,0.39450025]
[1749936554508,0.34949694,105290.0,105280.0,0.39450025]
[1749936554948,0.34949685,105290.0,105280.0,0.39450025]
[1749936555164,0.34949685,105290.0,105280.0,0.41720836]
[1749936555688,0.34949685,105290.0,105280.0,0.39450025]
[1749936557222,0.35899388,105290.0,105280.0,0.39450025]
[1749936559605,0.35899388,105290.0,105280.0,0.41721006]
[1749936560250,0.35899388,105290.0,105280.0,0.45841006]
[1749936560884,0.36849109,105290.0,105280.0,0.45841006]
[1749936561099,0.35899388,105290.0,105280.0,0.45841006]
[1749936562176,0.34949685,105290.0,105280.0,0.45841006]
[1749936562356,0.35899388,105290.0,105280.0,0.45841006]
[1749936563378,0.9008536,105290.0,105280.0,0.45841006]
[1749936564619,0.9008536,105290.0,105280.0,0.41721006]
[1749936566422,0.35899388,105290.0,105280.0,0.41721006]
[1749936568727,0.34,105290.0,105280.0,0.41721006]
[1749936568932,0.34,105290.0,105280.0,0.45841006]
[1749936569560,0.02014256,105300.0,105290.0,0.21844319]
[1749936569776,0.02014256,105300.0,105290.0,0.24117148]
[1749936570462,0.02963842,105300.0,105290.0,0.24117148]
[1749936570584,0.02014256,105300.0,105290.0,0.29987148]
[1749936572040,0.02014256,105300.0,105290.0,0.27067148]
[1749936573532,0.02014256,105300.0,105290.0,0.24117148]
[1749936574585,0.02014256,105300.0,105290.0,0.26977148]
[1749936579225,0.02014256,105300.0,105290.0,0.29997148]
[1749936579622,0.00014256,105300.0,105290.0,1.10181401]
[1749936580927,0.00014256,105300.0,105290.0,1.13012139]
[1749936581530,0.00014256,105300.0,105290.0,1.06219313]
[1749936582481,0.00014256,105300.0,105290.0,1.07695045]
[1749936582718,0.00014256,105300.0,105290.0,1.08642414]
[1749936582934,0.00014256,105300.0,105290.0,1.14317135]
[1749936583409,0.00014256,105300.0,105290.0,1.4977122]
[1749936583641,0.00014256,105300.0,105290.0,1.45993113]
[1749936584339,0.00014256,105300.0,105290.0,1.49764169]
[1749936584586,0.00014256,105300.0,105290.0,1.45993113]
[1749936585300,0.00014256,105300.0,105290.0,1.50062504]
[1749936585993,0.00014256,105300.0,105290.0,1.46293113]
[1749936586226,0.00014256,105300.0,105290.0,1.50060811]
[1749936586701,0.3741222,105340.0,105330.0,0.21836025]
[1749936586940,0.38375743,105340.0,105330.0,0.41536025]
[1749936587187,0.40884314,105340.0,105330.0,0.41536025]
[1749936587659,0.39993259,105340.0,105330.0,0.4777833]
[1749936587885,0.40884311,105340.0,105330.0,0.4777833]
[1749936588260,0.39993258,105340.0,105330.0,0.4777833]
[1749936588596,0.39935041,105340.0,105330.0,0.4777833]
[1749936589048,0.3993504,105340.0,105330.0,0.4777833]
[1749936589669,0.39043988,105340.0,105330.0,0.4777833]
[1749936589877,0.38375698,105340.0,105330.0,0.4777833]
[1749936590081,0.39935041,105340.0,105330.0,0.4777833]
[1749936590283,0.39266751,105340.0,105330.0,0.4777833]
[1749936590489,0.39935031,105340.0,105330.0,0.41536025]
[1749936590694,0.39043977,105340.0,105330.0,0.41536025]
[1749936590925,0.40884307,105340.0,105330.0,0.41536025]
[1749936591133,0.39993256,105340.0,105330.0,0.41536025]
[1749936591334,0.40884298,105340.0,105330.0,0.41536025]
[1749936591537,0.39993247,105340.0,105330.0,0.41536025]
[1749936591942,0.39324959,105340.0,105330.0,0.41536025]
[1749936592161,0.39993247,105340.0,105330.0,0.41536025]
[1749936592565,0.4021601,105340.0,105330.0,0.41536025]
[1749936592769,0.39993247,105340.0,105330.0,0.41536025]
[1749936593175,0.40884298,105340.0,105330.0,0.41536025]
[1749936593368,0.39993247,105340.0,105330.0,0.41536025]
[1749936593507,0.38375734,105340.0,105330.0,0.41532034]
[1749936593725,0.38375725,105340.0,105330.0,0.48723274]
[1749936594130,0.39325004,105340.0,105330.0,0.48723274]
[1749936594326,0.38375734,105340.0,105330.0,0.48723274]
[1749936594613,0.40099619,105340.0,105330.0,0.48723274]
[1749936594792,0.38317513,105340.0,105330.0,0.48723274]
[1749936595042,0.40099591,105340.0,105330.0,0.48723274]
[1749936595221,0.39208554,105340.0,105330.0,0.48723274]
[1749936595424,0.37426473,105340.0,105330.0,0.48723274]
[1749936595636,0.39208553,105340.0,105330.0,0.48723274]
[1749936595781,0.41048863,105340.0,105330.0,0.48723274]
[1749936595996,0.39208553,105340.0,105330.0,0.42481368]
[1749936596214,0.40099593,105340.0,105330.0,0.42481368]
[1749936596626,0.39208553,105340.0,105330.0,0.42481368]
[1749936596847,0.40099593,105340.0,105330.0,0.42481368]
[1749936597276,0.41048872,105340.0,105330.0,0.42481368]
[1749936597537,0.38317513,105340.0,105330.0,0.42481368]
[1749936597739,0.41048863,105340.0,105330.0,0.42481368]
[1749936597980,0.41998151,105340.0,105330.0,0.42481368]
[1749936598185,0.41048863,105340.0,105330.0,0.42481368]
[1749936598610,0.39266783,105340.0,105330.0,0.42481368]
[1749936598793,0.38375743,105340.0,105330.0,0.42481368]
[1749936599007,0.41048864,105340.0,105330.0,0.42481368]
[1749936599214,0.40157824,105340.0,105330.0,0.42481368]
[1749936599484,0.38375743,105340.0,105330.0,0.42481368]
[1749936600421,0.39325031,105340.0,105330.0,0.42481368]
[1749936600633,0.38375743,105340.0,105330.0,0.42481368]
[1749936601109,0.36477212,105340.0,105330.0,0.42481368]
[1749936601343,0.35527978,105340.0,105330.0,0.42481368]
[1749936602311,0.35527978,105340.0,105330.0,0.52105544]
[1749936602312,0.00014253,105340.0,105330.0,0.52105544]
[1749936602511,0.00014253,105340.0,105330.0,1.11947873]
[1749936602719,0.00014253,105340.0,105330.0,1.14206907]
[1749936602929,0.00014253,105340.0,105330.0,1.22534434]
[1749936603339,0.00014253,105340.0,105330.0,1.29263965]
[1749936603988,0.00014253,105340.0,105330.0,1.29663965]
[1749936604628,0.00014253,105340.0,105330.0,1.90545825]
[1749936605061,0.00014253,105340.0,105330.0,1.93371569]
[1749936605321,0.00014253,105340.0,105330.0,1.27097568]
[1749936605547,0.00014253,105340.0,105330.0,1.30865266]
[1749936605758,0.00014253,105340.0,105330.0,1.27097568]
[1749936606175,0.00014253,105340.0,105330.0,1.30865266]
[1749936607234,0.00014253,105340.0,105330.0,0.4735202]
[1749936607490,0.01385783,105340.0,105330.0,0.57586322]
[1749936607717,0.00014253,105340.0,105330.0,0.54760578]
[1749936608393,0.00014253,105340.0,105330.0,0.35068578]
[1749936608859,0.00014253,105340.0,105330.0,0.54760578]
[1749936609084,0.00014253,105340.0,105330.0,0.57610578]
[1749936610189,0.00014253,105340.0,105330.0,0.60436322]
[1749936611464,0.00014253,105340.0,105330.0,0.40744322]
[1749936611707,0.00014253,105340.0,105330.0,0.60436322]
[1749936613064,0.00014253,105340.0,105330.0,0.70051244]
[1749936613469,0.00014253,105340.0,105330.0,0.62342322]
[1749936613681,0.00014253,105340.0,105330.0,0.60436322]
[1749936619713,0.00014253,105340.0,105330.0,0.40744322]
[1749936619927,0.00014253,105340.0,105330.0,0.60436322]
[1749936626172,0.00014253,105340.0,105330.0,0.6420402]
[1749936626530,0.00014253,105340.0,105330.0,0.70051244]
[1749936626745,0.00014253,105340.0,105330.0,0.73818942]
[1749936627699,0.00014253,105340.0,105330.0,0.73831044]
[1749936629293,0.00014253,105340.0,105330.0,1.34721833]
[1749936631462,0.00014253,105340.0,105330.0,1.37741833]
[1749936632712,0.00014253,105340.0,105330.0,0.41674122]
[1749936632950,0.00014253,105340.0,105330.0,1.22252911]
[1749936635364,0.00014253,105340.0,105330.0,1.25272911]
[1749936635853,0.66745042,105340.0,105330.0,0.51733946]
[1749936636048,0.68526903,105340.0,105330.0,0.47966248]
[1749936636452,0.66745042,105340.0,105330.0,0.47966248]
[1749936636674,0.68526975,105340.0,105330.0,0.47966248]
[1749936637042,0.67636009,105340.0,105330.0,0.28282248]
[1749936637249,0.68526978,105340.0,105330.0,0.47966248]
[1749936637423,0.68526979,105340.0,105330.0,0.47966248]
[1749936637651,0.54304853,105340.0,105330.0,0.45134648]
[1749936637827,0.06207014,105350.0,105340.0,0.2183395]
[1749936638058,0.08927427,105350.0,105340.0,0.2183395]
[1749936638279,0.08927427,105350.0,105340.0,0.4151795]
[1749936638691,0.08036443,105350.0,105340.0,0.4151795]
[1749936638894,0.08927412,105350.0,105340.0,0.4151795]
[1749936639105,0.67145303,105350.0,105340.0,0.4151795]
[1749936639369,0.68869025,105350.0,105340.0,0.4151795]
[1749936639593,0.66196114,105350.0,105340.0,0.4151795]
[1749936639779,0.68869021,105350.0,105340.0,0.4151795]
[1749936640016,0.67978053,105350.0,105340.0,0.4171795]
[1749936640222,0.6886902,105350.0,105340.0,0.4171795]
[1749936640432,0.05130759,105350.0,105340.0,0.48939897]
[1749936640658,0.63348646,105350.0,105340.0,0.51206888]
[1749936640862,0.66021488,105350.0,105340.0,0.51206888]
[1749936641078,0.66021467,105350.0,105340.0,0.43984941]
[1749936641288,0.04239737,105350.0,105340.0,0.43984941]
[1749936641492,0.02457857,105350.0,105340.0,0.43984941]
[1749936645058,0.01957857,105350.0,105340.0,0.43984941]
[1749936645262,0.01957857,105350.0,105340.0,0.51433587]
[1749936646186,0.00577776,105350.0,105340.0,0.56973587]
[1749936648192,0.00577776,105350.0,105340.0,1.23557382]
[1749936648437,0.00577776,105350.0,105340.0,0.69429363]
[1749936649280,0.00577776,105350.0,105340.0,1.23557382]
[1749936650387,0.00577776,105350.0,105340.0,0.69429363]
[1749936650810,0.00577776,105350.0,105340.0,1.23557382]
[1749936651674,0.00577776,105350.0,105340.0,0.61980717]
[1749936655187,0.00577776,105350.0,105340.0,0.36756717]
[1749936655396,0.54705795,105350.0,105340.0,0.56436717]
[1749936655604,0.60355795,105350.0,105340.0,0.53605117]
[1749936655818,0.06227776,105350.0,105340.0,0.53605117]
[1749936656813,0.07176911,105350.0,105340.0,0.53605117]
[1749936657052,0.05767776,105350.0,105340.0,0.53605117]
[1749936657295,0.61794092,105350.0,105340.0,0.43980941]
[1749936658021,0.82676834,105350.0,105340.0,0.43980959]
[1749936658250,0.66365214,105350.0,105340.0,0.44930211]
[1749936658471,0.6636526,105350.0,105340.0,0.43612463]
[1749936658959,0.64583421,105350.0,105340.0,0.43612463]
[1749936659193,0.10455402,105350.0,105340.0,0.43612463]
[1749936659437,0.09564442,105350.0,105340.0,0.45878916]
[1749936659651,0.63692452,105350.0,105340.0,0.43612463]
[1749936659898,0.66364718,105350.0,105340.0,0.43612463]
[1749936660113,0.65473962,105350.0,105340.0,0.43612463]
[1749936660526,0.63692443,105350.0,105340.0,0.43612463]
[1749936660737,0.66364702,105350.0,105340.0,0.23932463]
[1749936660953,0.673139,105350.0,105340.0,0.43620463]
[1749936661440,0.66364718,105350.0,105340.0,0.43620463]
[1749936661657,0.02790039,105350.0,105340.0,0.52147516]
[1749936661878,0.00117776,105350.0,105340.0,1.21699711]
[1749936662340,0.00117776,105350.0,105340.0,1.24531311]
[1749936662821,0.00117776,105350.0,105340.0,0.70403292]
[1749936667360,0.02372041,105360.0,105350.0,0.21831877]
[1749936667583,0.02372041,105360.0,105350.0,0.43782089]
[1749936668313,0.02366041,105360.0,105350.0,0.43782089]
[1749936668519,0.02366041,105360.0,105350.0,0.55650421]
[1749936668737,0.02366041,105360.0,105350.0,0.58430421]
[1749936670459,0.02366041,105360.0,105350.0,0.43782089]